bitfinex/quotes_ETHUSD_20250930
["timestamp","ask_amount","ask_price","bid_price","bid_amount"]
[1759192778092,0.001,4223.1,4223.0,0.73197984]
[1759192778408,0.001,4223.1,4223.0,2.39166468]
[1759192778596,0.001,4223.1,4223.0,2.36798484]
[1759192779202,0.001,4223.1,4223.0,3.09996468]
[1759192779711,0.001,4223.1,4223.0,2.39166468]
[1759192780013,0.001,4223.1,4223.0,3.07886468]
[1759192780712,0.001,4223.1,4223.0,2.39166468]
[1759192781809,0.001,4223.1,4222.9,2.749]
[1759192782007,0.001,4223.1,4222.9,5.11702537]
[1759192782315,0.001,4223.1,4222.9,2.749]
[1759192783107,0.001,4223.1,4222.9,5.11701704]
[1759192783415,0.001,4223.1,4223.0,2.36798484]
[1759192783820,0.001,4223.1,4222.9,5.1170223]
[1759192784111,0.001,4223.1,4223.0,2.36798484]
[1759192785901,0.001,4223.1,4223.0,0.6872]
[1759192786597,0.001,4223.1,4222.9,2.749]
[1759192787210,0.2289,4223.1,4222.9,2.749]
[1759192787411,0.001,4223.1,4222.9,2.749]
[1759192790103,0.2289,4223.1,4222.9,2.749]
[1759192790816,0.001,4223.1,4223.0,2.748]
[1759192791201,0.6881,4223.1,4223.0,2.748]
[1759192791601,0.2289,4223.1,4223.0,2.748]
[1759192792807,0.001,4223.1,4223.0,2.748]
[1759192796629,0.2289,4223.1,4223.0,2.748]
[1759192796830,0.6881,4223.1,4223.0,2.748]
[1759192797010,0.2289,4223.1,4223.0,2.748]
[1759192797210,0.001,4223.1,4223.0,2.748]
[1759192797411,2.36892877,4223.1,4223.0,2.748]
[1759192797710,2.59682877,4223.1,4223.0,2.748]
[1759192797910,3.05602877,4223.1,4223.0,2.748]
[1759192798107,3.05602877,4223.1,4222.8,0.002]
[1759192798108,0.1176,4223.0,4222.8,0.002]
[1759192798307,0.1176,4223.0,4222.9,2.748]
[1759192798308,0.8047,4223.0,4222.9,2.748]
[1759192798507,0.1176,4223.0,4222.9,2.748]
[1759192799333,0.001,4223.1,4223.0,2.36798484]
[1759192799642,0.001,4223.1,4223.0,3.07886468]
[1759192799795,0.1186,4223.1,4223.0,4.48253121]
[1759192800798,0.1186,4223.1,4223.0,10.32224237]
[1759192800799,0.001,4223.1,4223.0,10.32224237]
[1759192801000,0.001,4223.1,4223.0,7.93057769]
[1759192801225,0.001,4223.1,4223.0,10.29856253]
[1759192801429,0.001,4223.1,4223.0,7.93057769]
[1759192801647,0.001,4223.1,4223.0,16.59086653]
[1759192801935,0.001,4223.1,4223.0,14.5]
[1759192802236,0.001,4223.1,4223.0,2.748]
[1759192804925,0.6881,4223.1,4223.0,2.748]
[1759192805119,0.001,4223.1,4223.0,2.748]
[1759192805320,0.001,4223.1,4223.0,5.11598484]
[1759192806299,0.001,4223.1,4223.0,5.11798484]
[1759192809927,0.001,4223.1,4223.0,5.79818484]
[1759192810131,0.001,4223.1,4223.0,6.61501171]
[1759192812648,0.001,4223.1,4223.0,18.74702687]
[1759192813149,0.001,4223.1,4223.0,17.25]
[1759192813327,0.6806,4223.1,4223.0,17.25]
[1759192813648,0.6806,4223.1,4223.0,2.75]
[1759192814233,0.25,4223.1,4223.0,2.75]
[1759192814737,0.25,4223.1,4223.0,0.002]
[1759192814920,0.97828765,4223.1,4223.0,0.002]
[1759192815121,0.51178765,4223.1,4223.0,2.749]
[1759192815450,2.60452877,4223.1,4223.0,2.749]
[1759192815746,3.07102877,4223.1,4223.0,2.749]
[1759192815954,0.7031,4223.1,4223.0,2.749]
[1759192817753,3.07102877,4223.1,4223.0,2.749]
[1759192817951,6.07102877,4223.1,4223.0,0.002]
[1759192818123,7.30209832,4223.1,4223.0,0.002]
[1759192829097,6.59999832,4223.1,4223.0,0.002]
[1759192829875,13.4718307,4223.1,4223.0,0.002]
[1759192830064,14.1739307,4223.1,4223.0,0.002]
[1759192830462,13.4718307,4223.1,4223.0,0.002]
[1759192832897,13.7074307,4223.1,4223.0,0.002]
[1759192833960,14.1739307,4223.1,4223.0,0.002]
[1759192834897,13.7074307,4223.1,4223.0,0.002]
[1759192835684,6.59999832,4223.1,4223.0,0.002]
[1759192837989,3.001,4223.1,4223.0,0.6834]
[1759192839702,5.36892877,4223.1,4223.0,0.6834]
[1759192839880,5.36892877,4223.1,4223.0,0.002]
[1759192840085,5.60322877,4223.1,4223.0,0.002]
[1759192840884,7.13332661,4223.1,4223.0,0.002]
[1759192843881,6.89902661,4223.1,4223.0,0.002]
[1759192845084,7.59132661,4223.1,4223.0,0.002]
[1759192845415,7.13332661,4223.1,4223.0,0.002]
[1759192846591,6.89902661,4223.1,4223.0,0.002]
[1759192847882,6.89902661,4223.1,4223.0,0.6938]
[1759192848295,4.53109784,4223.1,4223.0,0.002]
[1759192848495,3.001,4223.1,4223.0,0.6938]
[1759192849912,5.36892877,4223.1,4223.0,0.6938]
[1759192850112,3.001,4223.1,4223.0,0.6938]
[1759192852989,3.001,4223.1,4223.0,5.80578484]
[1759192852990,0.1186,4223.1,4223.0,5.80578484]
[1759192853190,0.001,4223.1,4223.0,5.80578484]
[1759192853408,0.001,4223.1,4223.0,21.13520895]
[1759192856908,0.001,4223.1,4223.0,14.29904133]
[1759192857294,0.001,4223.1,4223.0,14.41664133]
[1759192857487,0.001,4223.1,4223.0,28.91664133]
[1759192857916,0.001,4223.8,4223.7,3.15959239]
[1759192858114,0.001,4223.8,4223.7,13.09138401]
[1759192860419,0.001,4223.8,4223.7,29.45773899]
[1759192861108,0.001,4223.8,4223.7,22.58590661]
[1759192863229,0.001,4223.8,4223.7,25.58590661]
[1759192864628,0.001,4223.8,4223.7,22.84190661]
[1759192864825,0.001,4223.8,4223.7,25.58490661]
[1759192866415,0.001,4223.8,4223.7,22.84190661]
[1759192866602,0.001,4223.8,4223.7,25.58390661]
[1759192867104,0.001,4223.8,4223.7,25.70150661]
[1759192868101,0.001,4223.8,4223.7,22.95950661]
[1759192868304,0.001,4223.8,4223.7,25.70150661]
[1759192870200,0.001,4223.8,4223.7,31.53687195]
[1759192870414,0.001,4223.8,4223.7,37.37223729]
[1759192870622,0.001,4224.3,4223.7,37.37223729]
[1759192870623,1e-08,4224.3,4224.2,6.15931215]
[1759192870822,1e-08,4224.3,4224.2,14.85327749]
[1759192871022,1e-08,4224.3,4224.2,15.52047749]
[1759192871226,1e-08,4224.3,4224.2,30.02047749]
[1759192871426,1e-08,4224.3,4224.2,30.37697749]
[1759192871628,1e-08,4224.3,4224.2,31.2064016]
[1759192873629,1e-08,4224.3,4224.2,25.25343626]
[1759192873843,1e-08,4224.3,4224.2,18.05323626]
[1759192874022,1e-08,4224.3,4224.2,20.43773626]
[1759192874349,1e-08,4224.3,4224.2,20.67663626]
[1759192874648,1e-08,4224.3,4224.2,21.46863626]
[1759192875243,1e-08,4224.3,4224.2,22.16243626]
[1759192876261,1e-08,4224.3,4224.2,25.16243626]
[1759192877633,0.4549,4226.9,4225.5,2.36655725]
[1759192877953,0.4549,4226.9,4226.4,0.792]
[1759192878154,3.0,4227.8,4226.6,2.36596791]
[1759192878461,0.7026,4226.8,4226.7,19.63057105]
[1759192878751,0.7026,4226.8,4226.7,19.60691194]
[1759192879559,0.2477,4226.8,4226.7,19.60691194]
[1759192879721,0.4549,4227.1,4226.9,2.36578986]
[1759192880046,2.36545665,4227.6,4227.0,2.74]
[1759192880246,2.36552017,4227.4,4227.0,2.74]
[1759192880434,0.7026,4227.3,4227.0,17.24]
[1759192880634,0.7026,4227.2,4227.0,17.24]
[1759192880845,1.35661268,4227.5,4227.0,17.24]
[1759192880846,0.7026,4227.1,4227.0,17.24]
[1759192881949,0.2477,4227.5,4227.4,2.36552017]
[1759192882250,0.4549,4227.8,4227.4,2.36552017]
[1759192882251,0.4549,4227.8,4227.7,2.36535231]
[1759192882568,0.2477,4228.0,4227.9,2.36524042]
[1759192882862,0.2477,4228.0,4227.9,5.10524042]
[1759192884319,0.2477,4228.0,4227.9,19.60524042]
[1759192884552,0.2477,4228.0,4227.9,17.24]
[1759192884870,0.7026,4228.0,4227.9,14.5]
[1759192885022,0.7026,4228.0,4227.9,17.24]
[1759192885488,0.2477,4228.3,4227.9,17.24]
[1759192885788,0.5725,4228.5,4227.9,17.24]
[1759192885789,0.7026,4228.2,4227.9,17.24]
[1759192885946,0.4549,4228.1,4227.9,17.24]
[1759192886141,0.7026,4228.0,4227.9,17.24]
[1759192889873,0.7026,4228.0,4227.9,5.10524042]
[1759192890297,0.7026,4228.0,4226.9,2.36579999]
[1759192890494,0.2477,4227.9,4227.7,2.3653245]
[1759192890661,0.1176,4228.0,4227.8,2.739]
[1759192890865,0.1176,4228.0,4227.8,5.10428408]
[1759192891265,0.2477,4227.9,4227.8,5.10428408]
[1759192891690,0.7026,4227.9,4227.8,2.739]
[1759192891884,0.7026,4227.9,4227.8,5.10429637]
[1759192892096,0.2477,4227.9,4227.8,5.10429637]
[1759192892594,0.7026,4227.9,4227.8,2.739]
[1759192892975,0.7026,4227.9,4227.8,5.10429637]
[1759192893899,0.7026,4227.9,4227.8,19.60429637]
[1759192894604,0.7026,4227.9,4227.8,17.239]
[1759192894896,0.7026,4227.9,4226.5,0.234]
[1759192894897,3.06784217,4227.9,4226.5,0.234]
[1759192895097,0.1176,4227.3,4226.6,2.8556]
[1759192895298,0.1176,4227.3,4227.1,2.36568407]
[1759192895467,0.2477,4227.2,4227.1,2.36568407]
[1759192895668,0.2477,4227.2,4227.1,5.10368407]
[1759192896001,0.7026,4227.2,4227.1,5.10368407]
[1759192896303,0.7026,4227.2,4226.7,14.5]
[1759192896493,0.1176,4227.0,4226.8,2.738]
[1759192896695,0.3653,4227.0,4226.8,2.738]
[1759192896897,0.1176,4227.0,4226.8,5.10381273]
[1759192897092,0.2477,4226.9,4226.8,2.738]
[1759192897291,0.1176,4227.0,4226.8,2.738]
[1759192898081,0.3653,4227.0,4226.8,2.738]
[1759192899414,0.3653,4227.0,4226.8,5.10380918]
[1759192899607,0.3653,4227.0,4226.9,2.36579999]
[1759192899806,0.3653,4227.0,4226.8,5.10385505]
[1759192900016,0.2443,4226.9,4226.7,14.5]
[1759192900313,0.7039,4226.8,4226.7,14.5]
[1759192900526,0.2443,4226.8,4226.7,17.238]
[1759192901101,0.7039,4226.8,4226.7,2.738]
[1759192901635,0.2443,4226.8,4226.3,14.5]
[1759192901928,3.18741262,4226.7,4226.4,2.737]
[1759192902080,5.36602389,4226.5,4226.4,2.737]
[1759192902284,6.06992389,4226.5,4226.4,2.737]
[1759192902718,3.7039,4226.5,4226.4,2.737]
[1759192902879,6.06992389,4226.5,4226.4,2.737]
[1759192903081,3.7039,4226.5,4226.4,2.737]
[1759192903281,3.47218802,4226.5,4226.4,2.737]
[1759192903481,1.10616413,4226.5,4226.4,2.737]
[1759192903682,4.10616413,4226.5,4226.4,2.737]
[1759192904220,1.10616413,4226.5,4226.4,2.737]
[1759192904624,0.64656413,4226.5,4226.4,2.737]
[1759192905024,3.01258802,4226.5,4226.4,2.737]
[1759192905228,3.47218802,4226.5,4226.4,2.737]
[1759192905745,3.0,4226.4,4225.9,14.5]
[1759192905945,5.83198579,4226.2,4225.9,14.5]
[1759192906147,0.1176,4225.9,4225.4,2.36658774]
[1759192906323,0.1176,4225.7,4225.5,2.737]
[1759192906667,0.1176,4225.7,4225.6,14.5]
[1759192906824,0.1176,4225.7,4225.6,16.86652783]
[1759192907544,0.1176,4225.7,4225.6,17.29702783]
[1759192907731,0.1176,4225.7,4225.6,17.53452783]
[1759192910171,0.1176,4225.7,4225.6,5.10352783]
[1759192910627,0.1176,4225.7,4225.6,19.60352783]
[1759192910831,0.2443,4226.7,4226.1,2.36622609]
[1759192911171,0.4596,4227.0,4226.2,2.737]
[1759192911374,0.1176,4226.5,4226.3,2.3897548]
[1759192911526,0.1176,4226.5,4226.4,2.9745]
[1759192911949,0.1176,4226.5,4226.4,2.737]
[1759192912770,0.3619,4226.5,4226.4,2.737]
[1759192913283,1.20365,4226.5,4225.8,0.1176]
[1759192913453,0.1176,4226.2,4226.1,2.36619189]
[1759192913650,0.3619,4226.2,4226.1,5.10319189]
[1759192913849,0.3619,4226.2,4226.1,5.10324784]
[1759192914777,0.3619,4226.2,4226.1,2.737]
[1759192915570,0.3619,4226.2,4226.0,2.3662989]
[1759192915775,0.2443,4226.1,4225.9,2.36634663]
[1759192915978,0.2443,4226.1,4226.0,2.737]
[1759192916687,0.4596,4226.5,4226.0,5.10330383]
[1759192916993,0.2443,4226.4,4226.1,2.36624703]
[1759192917202,0.001,4226.5,4226.2,2.737]
[1759192917560,0.001,4226.5,4225.6,14.9305]
[1759192917561,0.1176,4226.2,4225.6,14.5]
[1759192917889,0.7039,4226.1,4225.7,2.737]
[1759192918092,0.2443,4226.0,4225.7,2.737]
[1759192918276,0.7039,4225.9,4225.7,2.737]
[1759192918583,0.2443,4225.9,4225.7,2.737]
[1759192919264,2.36625228,4226.1,4225.7,2.737]
[1759192919460,0.2443,4226.0,4225.7,2.737]
[1759192919684,3.29908555,4226.1,4225.7,2.737]
[1759192919850,0.2443,4225.9,4225.7,2.737]
[1759192920056,0.2443,4225.9,4225.3,14.5]
[1759192920381,5.36648365,4225.7,4225.4,2.737]
[1759192920575,6.75445481,4225.7,4225.4,2.737]
[1759192922553,4.38797116,4225.7,4225.4,2.737]
[1759192922781,6.75446468,4225.7,4225.4,2.737]
[1759192923006,2.36658383,4225.5,4225.4,2.737]
[1759192923476,5.36658383,4225.5,4225.4,2.737]
[1759192923673,3.0,4225.5,4225.1,14.5]
[1759192923876,0.2443,4225.4,4225.2,2.737]
[1759192924461,0.2443,4225.8,4225.2,2.737]
[1759192924673,2.36651224,4225.7,4225.2,2.737]
[1759192924883,2.36651224,4225.7,4225.2,2.9745]
[1759192925184,5.36653397,4225.6,4225.2,2.9745]
[1759192925481,5.36653652,4225.6,4225.2,2.9745]
[1759192925685,3.0,4225.6,4225.2,2.9745]
[1759192925885,5.3665338,4225.6,4225.2,2.9745]
[1759192926083,3.0,4225.5,4225.3,2.737]
[1759192926272,0.2443,4225.5,4225.3,2.737]
[1759192926678,3.2443,4225.5,4225.3,2.737]
[1759192926888,2.61091292,4225.5,4225.3,2.737]
[1759192927063,2.61091292,4225.5,4224.9,14.5]
[1759192927263,3.0,4225.8,4224.9,14.5]
[1759192927465,2.36667751,4225.4,4224.9,14.5]
[1759192927694,0.2443,4225.3,4224.9,14.5]
[1759192927896,0.2443,4225.3,4225.0,2.736]
[1759192928095,0.34596,4225.7,4225.0,3.404]
[1759192928276,5.36647628,4225.7,4225.1,0.2375]
[1759192928476,3.0,4225.7,4225.2,2.736]
[1759192928678,3.0,4225.6,4225.2,3.404]
[1759192928998,2.36653145,4225.6,4225.2,3.404]
[1759192929302,3.0,4225.7,4225.2,3.404]
[1759192929490,5.69090819,4225.7,4225.2,3.404]
[1759192929885,5.69090819,4225.7,4225.2,2.736]
[1759192930090,5.69090819,4225.7,4225.3,0.6922]
[1759192930396,2.36641946,4225.8,4225.4,2.736]
[1759192930770,2.36641946,4225.8,4225.4,2.9851]
[1759192931395,2.36647184,4225.7,4225.4,2.9851]
[1759192931599,2.36643479,4225.8,4225.4,2.9851]
[1759192931785,3.60836075,4226.0,4225.4,2.9851]
[1759192931991,2.36642452,4225.8,4225.4,2.9851]
[1759192932299,0.001,4226.5,4225.5,0.6922]
[1759192932482,0.001,4226.5,4226.0,2.36629434]
[1759192932686,0.001,4226.5,4226.1,2.75966247]
[1759192932995,0.001,4226.5,4226.1,3.45186247]
[1759192933179,0.001,4226.5,4226.2,0.6922]
[1759192934608,0.001,4226.5,4226.2,0.2491]
[1759192936003,0.1176,4226.2,4225.8,0.23]
[1759192936205,0.1176,4226.2,4225.9,3.4381]
[1759192936396,0.1176,4226.2,4226.0,3.06840383]
[1759192936805,0.1176,4226.2,4226.1,0.7021]
[1759192937706,0.1176,4226.2,4226.1,3.06834784]
[1759192937905,0.1176,4226.2,4226.1,0.7021]
[1759192938883,0.1176,4226.2,4226.1,3.06834784]
[1759192939087,0.1176,4226.2,4226.1,0.7021]
[1759192939309,0.1176,4226.2,4226.1,3.4381]
[1759192939805,0.1176,4226.2,4225.5,0.1176]
[1759192940020,0.3435,4226.2,4225.6,2.736]
[1759192940227,0.3435,4226.2,4225.7,2.36645063]
[1759192940228,0.1176,4225.9,4225.7,2.36645063]
[1759192940399,0.1176,4225.9,4225.8,2.36641582]
[1759192940707,0.1176,4225.9,4225.7,0.4721]
[1759192940708,0.1176,4225.9,4225.7,0.23]
[1759192940913,0.1176,4225.9,4225.8,2.735]
[1759192943518,0.1176,4225.9,4225.2,0.7021]
[1759192943719,0.1176,4225.7,4225.5,2.36653356]
[1759192943913,0.1176,4225.7,4225.6,2.735]
[1759192947022,0.1176,4225.7,4225.6,5.10152783]
[1759192947839,0.1176,4225.7,4225.6,2.735]
[1759192950645,0.1176,4225.7,4225.6,5.10152783]
[1759192950946,0.1176,4225.7,4225.6,2.735]
[1759192952853,0.1176,4225.7,4225.0,0.9096]
[1759192952854,2.48410108,4225.7,4225.0,0.1176]
[1759192953079,2.36668983,4225.4,4224.6,2.36906316]
[1759192953251,0.1176,4224.9,4224.8,2.36697018]
[1759192953551,0.1176,4224.9,4224.8,3.06907018]
[1759192953737,0.1176,4224.9,4224.8,3.09273993]
[1759192954225,0.001,4225.9,4224.8,1.4941]
[1759192954427,0.1176,4225.7,4225.6,2.36652783]
[1759192954630,0.001,4225.9,4225.8,2.36641582]
[1759192954830,0.001,4225.9,4225.8,5.12407997]
[1759192955142,0.001,4225.9,4225.8,6.71211582]
[1759192956226,0.001,4225.9,4225.8,13.57190036]
[1759192956433,0.001,4225.9,4225.8,15.16573758]
[1759192957167,0.001,4225.9,4225.8,8.30595304]
[1759192961371,0.001,4225.9,4225.8,5.45435304]
[1759192961683,0.001,4225.9,4225.8,8.18835304]
[1759192963337,0.001,4225.9,4225.8,8.28323004]
[1759192965052,0.001,4225.9,4225.8,15.14301458]
[1759192965750,0.001,4225.9,4225.8,29.64301458]
[1759192968783,0.001,4225.9,4225.8,14.5]
[1759192968784,0.2344,4225.9,4225.8,14.5]
[1759192968984,0.6828,4225.9,4225.8,2.733]
[1759192969473,3.04916142,4225.9,4225.8,2.733]
[1759192969677,0.6828,4225.9,4225.8,2.733]
[1759192969878,2.21030891,4225.9,4225.8,2.733]
[1759192972182,0.6828,4225.9,4225.8,2.733]
[1759192977291,0.001,4225.9,4225.8,2.733]
[1759192977786,0.2344,4225.9,4225.8,2.733]
[1759192978589,0.001,4225.9,4225.8,2.733]
[1759192978799,0.001,4225.9,4225.8,6.56381582]
[1759192978951,0.1186,4225.9,4225.8,7.45684789]
[1759192979355,0.1186,4225.9,4225.8,21.95684789]
[1759192979957,0.1186,4225.9,4225.8,21.06381582]
[1759192980882,0.352,4225.9,4225.8,17.232]
[1759192981258,0.352,4225.9,4225.8,14.5]
[1759192981259,0.8004,4225.9,4225.8,14.5]
[1759192981593,0.8004,4225.9,4225.8,2.732]
[1759192981790,1.35369573,4225.9,4225.8,2.732]
[1759192982884,0.90529573,4225.9,4225.8,2.732]
[1759192983489,0.352,4225.9,4225.8,2.732]
[1759192983670,0.1186,4225.9,4225.8,2.732]
[1759192985491,0.8004,4225.9,4225.6,14.5]
[1759192985802,3.04918912,4225.9,4225.7,2.732]
[1759192985968,0.2334,4225.8,4225.7,2.732]
[1759192987690,0.001,4225.9,4225.7,2.732]
[1759192988200,0.2344,4225.9,4225.7,2.732]
[1759192988369,0.81573802,4225.9,4225.7,2.732]
[1759192988998,0.2334,4225.8,4225.7,2.732]
[1759192989309,0.6818,4225.8,4225.7,2.732]
[1759192989487,0.2334,4225.8,4225.7,2.732]
[1759192991703,0.001,4225.9,4225.7,2.732]
[1759192991905,0.2442,4225.9,4225.7,2.732]
[1759192992384,0.001,4225.9,4225.7,2.732]
[1759192992583,0.001,4225.9,4225.7,2.9794]
[1759192992900,0.001,4225.9,4225.8,3.05331582]
[1759192993101,0.001,4225.9,4225.8,3.07697997]
[1759192993300,0.001,4225.9,4225.8,0.6869]
[1759192993503,0.001,4225.9,4225.8,3.05331582]
[1759192994175,0.001,4225.9,4225.8,3.86897997]
[1759192994415,0.001,4225.9,4225.8,11.28213426]
[1759192994617,0.001,4225.9,4225.8,11.25847011]
[1759192994924,0.001,4225.9,4225.8,25.75847011]
[1759192996430,0.001,4226.4,4225.9,2.36635982]
[1759192996596,0.001,4226.4,4226.3,8.9885628]
[1759192996796,0.001,4226.4,4226.3,13.24574386]
[1759192997022,0.001,4226.4,4226.3,34.2834708]
[1759192997398,0.001,4226.4,4226.3,34.3783352]
[1759192997719,0.001,4226.8,4226.3,34.3783352]
[1759192997720,0.001,4226.8,4226.6,0.792]
[1759192997923,0.001,4226.8,4226.5,2.36598834]
[1759192997924,0.001,4226.8,4226.7,12.11433771]
[1759192998171,0.001,4226.8,4226.7,12.23193771]
[1759192998427,0.001,4226.8,4226.7,12.93923771]
[1759192998592,0.001,4226.8,4226.7,13.40165922]
[1759192998796,0.001,4226.8,4226.7,12.93923771]
[1759192999202,0.001,4226.8,4226.7,27.43923771]
[1759193000444,0.001,4226.8,4226.7,17.37851077]
[1759193000598,0.001,4226.8,4226.7,26.52963771]
[1759193000796,0.001,4226.8,4226.7,27.32163771]
[1759193003060,0.001,4226.8,4226.7,20.78291077]
[1759193003364,0.001,4226.8,4226.7,26.61333771]
[1759193003959,0.001,4226.8,4226.7,26.85113771]
[1759193004128,0.001,4226.8,4226.7,23.88333771]
[1759193004334,0.001,4226.8,4226.7,25.82133771]
[1759193004851,0.001,4226.8,4226.7,26.61333771]
[1759193008668,0.227,4226.8,4226.7,23.88333771]
[1759193008874,0.227,4226.8,4226.7,14.5]
[1759193009167,0.6564,4226.8,4226.7,17.23]
[1759193009474,0.227,4226.8,4226.7,17.23]
[1759193011273,0.001,4226.8,4226.7,20.38791194]
[1759193011473,0.001,4226.8,4226.7,23.49251737]
[1759193011975,0.001,4226.8,4226.7,22.78521737]
[1759193013072,0.001,4226.8,4226.7,23.49251737]
[1759193013435,0.001,4226.8,4226.7,23.02301737]
[1759193013632,0.001,4226.8,4226.7,22.78521737]
[1759193014251,0.001,4226.8,4226.7,20.38791194]
[1759193015474,0.001,4226.8,4226.7,21.09521194]
[1759193015653,0.001,4226.8,4226.7,20.38791194]
[1759193018765,0.001,4226.8,4226.7,21.09521194]
[1759193019958,0.001,4226.8,4226.7,20.63561194]
[1759193020272,0.001,4226.8,4226.7,21.07341194]
[1759193020462,0.001,4226.8,4226.7,23.47071737]
[1759193021155,0.001,4226.8,4226.7,23.03291737]
[1759193022169,0.001,4226.8,4226.7,23.47071737]
[1759193023970,0.001,4226.8,4226.7,23.58831737]
[1759193028181,0.001,4226.8,4226.7,20.85831737]
[1759193028370,0.001,4226.8,4226.7,22.90081737]
[1759193028568,0.001,4226.8,4226.7,19.38081737]
[1759193028887,0.001,4226.8,4226.7,28.73124431]
[1759193029898,0.001,4226.8,4226.7,16.98351194]
[1759193030097,0.001,4226.8,4226.7,19.59391194]
[1759193030098,0.696,4226.8,4226.7,19.59391194]
[1759193030269,0.001,4226.8,4226.7,19.59391194]
[1759193030585,0.001,4226.8,4226.7,20.63361194]
[1759193030784,0.001,4226.8,4226.7,21.18901194]
[1759193030988,0.001,4226.8,4226.7,23.58631737]
[1759193032792,0.001,4226.8,4226.7,23.14851737]
[1759193033285,0.001,4226.8,4226.7,23.58631737]
[1759193038891,0.001,4226.8,4226.7,22.90081737]
[1759193039788,0.001,4226.8,4226.7,23.14851737]
[1759193040188,0.001,4226.8,4226.7,23.58631737]
[1759193040394,0.001,4226.8,4226.7,23.14851737]
[1759193040702,0.001,4226.8,4226.7,23.58631737]
[1759193053427,0.001,4226.8,4226.7,20.17281737]
[1759193053724,0.001,4226.8,4226.7,22.89881737]
[1759193055446,0.001,4226.8,4226.7,23.58071737]
[1759193056252,0.001,4226.8,4226.7,30.43828169]
[1759193057824,0.001,4226.8,4226.7,29.75638169]
[1759193058757,0.001,4226.8,4226.7,30.43828169]
[1759193061532,0.001,4226.8,4226.7,29.75638169]
[1759193062161,0.001,4226.8,4226.7,30.00048169]
[1759193063860,0.001,4226.8,4226.7,29.75638169]
[1759193065355,0.001,4226.8,4226.7,27.03038169]
[1759193065553,0.001,4226.8,4226.7,29.75538169]
[1759193070279,0.2469,4226.8,4226.7,20.17281737]
[1759193070477,0.6833,4226.8,4226.7,22.89781737]
[1759193070665,0.2469,4226.8,4226.7,22.89781737]
[1759193070866,0.001,4226.8,4226.7,22.89781737]
[1759193071067,0.001,4226.8,4226.7,26.57971737]
[1759193071853,0.001,4226.8,4226.7,26.46211737]
[1759193072094,0.001,4226.8,4226.7,28.28047914]
[1759193072252,0.001,4226.8,4226.7,26.57971737]
[1759193074080,0.001,4226.8,4226.7,28.27842531]
[1759193074985,0.001,4226.8,4226.7,26.57971737]
[1759193075191,0.001,4226.8,4226.7,30.1252155]
[1759193075358,0.2469,4226.8,4226.7,32.0572155]
[1759193075558,0.001,4226.8,4226.7,32.0572155]
[1759193075760,0.001,4226.8,4226.7,32.8492155]
[1759193076584,0.2469,4226.8,4226.7,32.8492155]
[1759193076785,0.2469,4226.8,4226.7,23.26765118]
[1759193077120,0.6833,4226.8,4226.7,16.96074575]
[1759193077294,0.6833,4226.8,4226.7,19.68474575]
[1759193078817,0.6833,4226.8,4226.7,20.47674575]
[1759193084212,0.6833,4226.8,4226.7,20.47574575]
[1759193084928,0.2469,4226.8,4226.7,20.47574575]
[1759193085426,0.6974,4226.8,4226.7,20.47574575]
[1759193086048,0.2432,4226.8,4226.7,20.47574575]
[1759193086821,0.001,4226.8,4226.7,23.04459071]
[1759193087337,0.001,4226.8,4226.7,23.47439071]
[1759193087532,0.001,4226.8,4226.7,22.80729071]
[1759193087830,0.001,4226.8,4226.7,26.47439071]
[1759193092047,0.001,4226.8,4226.7,25.80729071]
[1759193095346,0.001,4226.8,4226.7,25.92489071]
[1759193098938,0.2432,4226.8,4226.7,25.92489071]
[1759193099469,0.001,4226.8,4226.7,25.92489071]
[1759193100741,0.001,4226.8,4226.7,26.59199071]
[1759193101841,0.001,4226.8,4226.7,25.92489071]
[1759193102038,0.6974,4226.8,4226.7,25.92389071]
[1759193102262,0.001,4226.8,4226.7,25.92389071]
[1759193104067,0.2432,4226.8,4226.7,25.92389071]
[1759193104238,0.001,4226.8,4226.7,25.92389071]
[1759193105868,0.6974,4226.8,4226.7,15.50443381]
[1759193106071,0.6974,4226.8,4226.7,20.47474575]
[1759193107061,0.2432,4226.8,4226.7,20.47474575]
[1759193108971,0.2432,4226.8,4226.7,5.97474575]
[1759193109665,0.2432,4226.8,4226.7,20.47474575]
[1759193110643,0.6805,4226.8,4226.7,20.47474575]
[1759193111054,0.6805,4226.8,4226.7,14.5]
[1759193111281,0.6805,4226.8,4226.7,17.222]
[1759193111458,0.6805,4226.8,4226.5,0.002]
[1759193111662,0.6805,4226.8,4226.6,2.722]
[1759193111880,0.6864,4226.7,4226.5,0.002]
[1759193112187,0.30532699,4226.6,4226.5,0.002]
[1759193112386,0.74262699,4226.6,4226.5,2.724]
[1759193112574,0.6864,4226.6,4226.5,2.724]
[1759193112893,0.001,4226.8,4226.7,2.36591194]
[1759193113073,0.001,4226.8,4226.7,5.90357105]
[1759193113389,0.001,4226.8,4226.7,5.87991194]
[1759193115790,0.2467,4226.8,4226.6,0.2491]
[1759193115979,0.6888,4226.7,4226.6,0.2491]
[1759193116185,0.6888,4226.7,4226.6,2.9711]
[1759193116384,0.6888,4226.7,4226.6,2.722]
[1759193116682,6.51921333,4226.7,4226.6,2.722]
[1759193116882,0.89772133,4226.7,4226.6,2.722]
[1759193117070,0.001,4226.8,4226.7,2.36591194]